lending/lending_fUSD_20250920
["ID","MTS","AMOUNT","RATE_DAILY","PERIOD"]
[386563722,1758395446820,-620.0,0.00021918,2]
[386563723,1758395446829,-620.0,0.00021918,2]
[386563724,1758395446839,-620.0,0.00021918,2]
[386563725,1758395446849,-620.0,0.00021918,2]
[386563726,1758395446858,-1072.0,0.00021918,2]
[386563727,1758395446867,-1072.0,0.00021918,2]
[386563728,1758395446877,-1072.0,0.00021918,2]
[386563729,1758395446887,-1072.0,0.00021918,2]
[386563730,1758395446896,-1072.0,0.00021918,2]
[386563731,1758395446905,-1072.0,0.00021918,2]
[386563732,1758395446913,-1072.0,0.00021918,2]
[386563733,1758395446923,-1072.0,0.00021918,2]
[386563734,1758395446934,-1072.0,0.00021918,2]
[386563735,1758395446943,-1072.0,0.00021918,2]
[386563736,1758395446952,-1072.0,0.00021918,2]
[386563737,1758395446961,-1072.0,0.00021918,2]
[386563738,1758395446970,-1072.0,0.00021918,2]
[386563739,1758395446978,-1072.0,0.00021918,2]
[386563740,1758395446988,-620.0,0.00021918,2]
[386563741,1758395446997,-620.0,0.00021918,2]
[386563742,1758395447007,-620.0,0.00021918,2]
[386563743,1758395447016,-620.0,0.00021918,2]
[386563744,1758395447025,-620.0,0.00021918,2]
[386563745,1758395447034,-620.0,0.00021918,2]
[386563746,1758395447043,-620.0,0.00021918,2]
[386563747,1758395447052,-620.0,0.00021918,2]
[386563748,1758395447062,-620.0,0.00021918,2]
[386563749,1758395447071,-620.0,0.00021918,2]
[386563750,1758395447080,-620.0,0.00021918,2]
[386563751,1758395447090,-605.52610191,0.00021918,2]
[386563752,1758395447171,-14.47389809,0.00021918,2]
[386563753,1758395447182,-620.0,0.00021918,2]
[386563754,1758395447196,-620.0,0.00021918,2]
[386563755,1758395447205,-1072.0,0.00021918,2]
[386563756,1758395447214,-1072.0,0.00021918,2]
[386563757,1758395447223,-1072.0,0.00021918,2]
[386563758,1758395447232,-1072.0,0.00021918,2]
[386563759,1758395447241,-1072.0,0.00021918,2]
[386563760,1758395447250,-1072.0,0.00021918,2]
[386563761,1758395447259,-1072.0,0.00021918,2]
[386563762,1758395447268,-1072.0,0.00021918,2]
[386563763,1758395447277,-1072.0,0.00021918,2]
[386563764,1758395447286,-1072.0,0.00021918,2]
[386563765,1758395447295,-1072.0,0.00021918,2]
[386563766,1758395447305,-1072.0,0.00021918,2]
[386563767,1758395447317,-1072.0,0.00021918,2]
[386563768,1758395447327,-1072.0,0.00021918,2]
[386563769,1758395447336,-620.0,0.00021918,2]
[386563770,1758395447346,-620.0,0.00021918,2]
[386563771,1758395447355,-620.0,0.00021918,2]
[386563772,1758395447364,-620.0,0.00021918,2]
[386563773,1758395447373,-620.0,0.00021918,2]
[386563774,1758395447382,-620.0,0.00021918,2]
[386563775,1758395447391,-620.0,0.00021918,2]
[386563776,1758395447400,-620.0,0.00021918,2]
[386563777,1758395447409,-620.0,0.00021918,2]
[386563778,1758395447419,-620.0,0.00021918,2]
[386563779,1758395447428,-620.0,0.00021918,2]
[386563780,1758395447437,-620.0,0.00021918,2]
[386563781,1758395447446,-620.0,0.00021918,2]
[386563782,1758395447455,-620.0,0.00021918,2]
[386563783,1758395447464,-1072.0,0.00021918,2]
[386563784,1758395447473,-1072.0,0.00021918,2]
[386563785,1758395447482,-1072.0,0.00021918,2]
[386563786,1758395447491,-1072.0,0.00021918,2]
[386563787,1758395447500,-1072.0,0.00021918,2]
[386563788,1758395447510,-1072.0,0.00021918,2]
[386563789,1758395447519,-1072.0,0.00021918,2]
[386563790,1758395447527,-1072.0,0.00021918,2]
[386563791,1758395447536,-1072.0,0.00021918,2]
[386563792,1758395447545,-1072.0,0.00021918,2]
[386563793,1758395447554,-1072.0,0.00021918,2]
[386563794,1758395447564,-1072.0,0.00021918,2]
[386563795,1758395447572,-1072.0,0.00021918,2]
[386563796,1758395447581,-620.0,0.00021918,2]
[386563797,1758395447590,-620.0,0.00021918,2]
[386563798,1758395447599,-620.0,0.00021918,2]
[386563799,1758395447608,-620.0,0.00021918,2]
[386563800,1758395447617,-620.0,0.00021918,2]
[386563801,1758395447626,-620.0,0.00021918,2]
[386563802,1758395447635,-620.0,0.00021918,2]
[386563803,1758395447644,-620.0,0.00021918,2]
[386563804,1758395447654,-620.0,0.00021918,2]
[386563805,1758395447663,-620.0,0.00021918,2]
[386563806,1758395447672,-620.0,0.00021918,2]
[386563807,1758395447681,-620.0,0.00021918,2]
[386563808,1758395447691,-620.0,0.00021918,2]
[386563809,1758395447701,-1073.0,0.00021918,2]
[386563810,1758395447710,-5000.0,0.00021918,2]
[386563811,1758395447720,-155.0,0.00021918,2]
[386563812,1758395447729,-306.0,0.00021918,2]
[386563813,1758395447739,-155.0,0.00021918,2]
[386563814,1758395447748,-155.0,0.00021918,2]
[386563815,1758395447757,-155.0,0.00021918,2]
[386563816,1758395447766,-155.0,0.00021918,2]
[386563817,1758395447775,-284.07256061,0.00021918,2]
[386563818,1758395447785,-160.0,0.00021918,2]
[386563819,1758395447794,-245.64246119,0.00021918,2]
[386563820,1758395447803,-159.0,0.00021918,2]
[386563821,1758395447813,-155.0,0.00021918,2]
[386563822,1758395447823,-155.0,0.00021918,2]
[386563823,1758395447834,-238.06123107,0.00021918,2]
[386563824,1758395447843,-155.0,0.00021918,2]
[386563825,1758395447856,-160.0,0.00021918,2]
[386563826,1758395447865,-155.0,0.00021918,2]
[386563827,1758395447875,-160.0,0.00021918,2]
[386563828,1758395447883,-159.9786053,0.00021918,2]
[386563829,1758395447893,-155.0,0.00021918,2]
[386563830,1758395447903,-155.0,0.00021918,2]
[386563831,1758395447912,-155.0,0.00021918,2]
[386563832,1758395447921,-155.0,0.00021918,2]
[386563833,1758395448168,-155.0,0.00021918,2]
[386563834,1758395448181,-155.68177184,0.00021918,2]
[386563835,1758395448191,-155.0,0.00021918,2]
[386563836,1758395448201,-155.0,0.00021918,2]
[386563837,1758395448210,-155.0,0.00021918,2]
[386563838,1758395448220,-208.09293353,0.00021918,2]
[386563839,1758395448230,-155.0,0.00021918,2]
[386563840,1758395448239,-155.0,0.00021918,2]
[386563841,1758395448248,-155.0,0.00021918,2]
[386563842,1758395448258,-155.0,0.00021918,2]
[386563843,1758395448267,-150.0,0.00021918,2]
[386563844,1758395448277,-500.0,0.00021918,2]
[386563845,1758395448287,-150.0,0.00021918,2]
[386563846,1758395448300,-164.45720574,0.00021918,2]
[386563847,1758395448310,-151.09027267,0.00021918,2]
[386563848,1758395448326,-970.0,0.00021918,2]
[386563849,1758395448335,-500.0,0.00021918,2]
[386563850,1758395448344,-500.0,0.00021918,2]
[386563851,1758395448355,-448.0,0.00021918,2]
[386563852,1758395448365,-758.0,0.00021918,2]
[386563853,1758395448374,-2716.0,0.00021918,2]
[386563854,1758395448384,-378.49743837,0.00021918,2]
[386563855,1758395448395,-500.0,0.00021918,2]
[386563856,1758395448409,-500.0,0.00021918,2]
[386563857,1758395448419,-261.23564244,0.00021918,2]
[386563858,1758395448428,-150.0,0.00021918,2]
[386563859,1758395448438,-150.0,0.00021918,2]
[386563860,1758395448448,-500.0,0.00021918,2]
[386563861,1758395448458,-339.10281016,0.00021918,2]
[386563862,1758395448467,-166.31025087,0.00021918,2]
[386563863,1758395448478,-166.31025087,0.00021918,2]
[386563864,1758395448489,-500.0,0.00021919,5]
[386563865,1758395448498,-300.0,0.00021933,2]
[386563866,1758395448507,-1199.20597015,0.00021967,2]
[386563867,1758395448516,-400.0,0.0002197,2]
[386563868,1758395448526,-300.0,0.0002197,2]
[386563869,1758395448535,-400.0,0.0002197,2]
[386563870,1758395448544,-514.71323363,0.00021999,2]
[386563871,1758395448555,-2014.73757242,0.00022,2]
[386563872,1758395448565,-4122.33083323,0.00022,2]
[386563873,1758395448576,-17268.53007961,0.00022,3]
[386563874,1758395448585,-5227.56953875,0.00022,20]
[386563875,1758395448598,-4772.43046125,0.00022,20]
[386563876,1758395448608,-781.76208985,0.00022,7]
[386563877,1758395448617,-218736.09382564,0.00022,4]
[386563878,1758395448628,-58715.0,0.00022,7]
[386563879,1758395448638,-1116.67819355,0.00022,15]
[386563880,1758395448647,-5009.0,0.00022,2]
[386563881,1758395448656,-162.0,0.00022,7]
[386563882,1758395448666,-4079.81773469,0.00022,2]
[386563883,1758395448675,-160.97,0.00022,2]
[386563884,1758395448685,-2583.94798335,0.00022,2]
[386563885,1758395448694,-179.0,0.00022,2]
[386563886,1758395448704,-500.0,0.00022,2]
[386563887,1758395448715,-150.0,0.00022,2]
[386563888,1758395448724,-150.0,0.00022,2]
[386563889,1758395448734,-150.0,0.00022,2]
[386563890,1758395448745,-150.0,0.00022,2]
[386563891,1758395448754,-150.0,0.00022,2]
[386563892,1758395448763,-150.0,0.00022,2]
[386563893,1758395448773,-150.0,0.00022,2]
[386563894,1758395448783,-150.0,0.00022,2]
[386563895,1758395448792,-150.0,0.00022,2]
[386563896,1758395448802,-150.0,0.00022,2]
[386563897,1758395448811,-946.6707,0.00022,2]
[386563898,1758395448821,-946.6707,0.00022,2]
[386563899,1758395448830,-150.0,0.00022,2]
[386563900,1758395448840,-2180.98,0.00022,2]
[386563901,1758395448851,-2000.0,0.0002201,2]
[386563902,1758395448862,-2000.0,0.0002201,2]
[386563903,1758395448871,-714.23153356,0.00022032,2]
[386563904,1758395448881,-300.0,0.0002207,2]
[386563905,1758395448890,-400.0,0.0002207,2]
[386563906,1758395448900,-671.48,0.00022083,2]
[386563907,1758395448909,-157.63054554,0.00022092,2]
[386563908,1758395448919,-848.61,0.000221,2]
[386563909,1758395448928,-200.65,0.000221,2]
[386563910,1758395448937,-486.48934609,0.000221,2]
[386563911,1758395448947,-193.99744232,0.000221,2]
[386563912,1758395448956,-333.77481173,0.000221,2]
[386563913,1758395448966,-500.0,0.000221,2]
[386563914,1758395448975,-500.0,0.000221,2]
[386563915,1758395448985,-293.43164756,0.000221,2]
[386563916,1758395449063,-206.56835244,0.000221,2]
[386563917,1758395449072,-500.0,0.000221,2]
[386563918,1758395449083,-500.0,0.000221,2]
[386563919,1758395449092,-501.09462016,0.000221,2]
[386563920,1758395449102,-500.0,0.000221,2]
[386563921,1758395449112,-500.0,0.000221,2]
[386563922,1758395449121,-352.35782126,0.000221,2]
[386563923,1758395449131,-500.0,0.000221,2]
[386563924,1758395449141,-600.0,0.0002211,2]
[386563925,1758395449151,-236.41519932,0.0002211,2]
[386563926,1758395449160,-500.0,0.00022125,2]
[386563927,1758395449170,-501.24251768,0.00022125,2]
[386563928,1758395449180,-775.81698648,0.0002215,7]
[386563929,1758395449189,-150.0,0.00022167,4]
[386563930,1758395449198,-150.0,0.00022167,4]
[386563931,1758395449207,-150.0,0.00022167,4]
[386563932,1758395449216,-302.3543072,0.00022192,2]
[386563933,1758395449225,-410.11,0.00022192,2]
[386563934,1758395449234,-250.0,0.00022192,2]
[386563935,1758395449244,-500.0,0.00022192,2]
[386563936,1758395449253,-150.0,0.00022192,2]
[386563937,1758395449263,-512.80928542,0.00022192,2]
[386563938,1758395449309,-457.19071458,0.00022192,2]
[386563939,1758395449321,-500.0,0.00022192,2]
[386563940,1758395449330,-500.0,0.00022192,2]
[386563941,1758395449340,-448.0,0.00022192,2]
[386563942,1758395449350,-758.0,0.00022192,2]
[386563943,1758395449359,-1210.86015372,0.00022192,2]
[386563944,1758395449393,-1505.13984628,0.00022192,2]
[386563945,1758395449404,-500.0,0.00022192,2]
[386563946,1758395449414,-500.0,0.00022192,2]
[386563947,1758395449424,-150.0,0.00022192,2]
[386563948,1758395449433,-500.0,0.00022193,5]
[386563949,1758395449443,-993.47633257,0.000222,2]
[386563950,1758395449453,-166.6816069,0.00022305,2]
[386563951,1758395449463,-1192.33,0.00022329,2]
[386563952,1758395449472,-150.1,0.00022329,2]
[386563953,1758395449482,-411.54,0.00022329,2]
[386563954,1758395449491,-411.54,0.00022329,2]
[386563955,1758395449501,-671.48,0.00022357,2]
[386563956,1758395449510,-430.79345521,0.00022365,2]
[386563957,1758395449521,-2090.08,0.000224,2]
[386563958,1758395449530,-626.22,0.000224,2]
[386563959,1758395449539,-1252.45,0.000224,2]
[386563960,1758395449549,-250.48,0.000224,2]
[386563961,1758395449558,-200.39,0.000224,2]
[386563962,1758395449567,-801.56,0.000224,2]
[386563963,1758395449577,-250.81,0.000224,2]
[386563964,1758395449586,-175.62,0.00022425,2]
[386563965,1758395449597,-29717.31559421,0.00022464,2]
[386563966,1758395449609,-491.77888165,0.00022464,2]
[386563983,1758395594522,500.0,0.00013699,2]
[386563995,1758395801236,2837.0,0.000188,5]
[386564008,1758395864808,507.51,0.00025093,120]
[386564009,1758395865275,507.51,0.00027602,120]
[386564010,1758395865373,507.51,0.00030111,120]
[386564011,1758395870827,160.47,0.00010041,2]
[386564013,1758395956635,200.0,0.00029783,120]
[386564014,1758395956907,200.0,0.00029484,120]
[386564137,1758396541836,327.35007069,0.00022,30]
[386564179,1758396632386,-500.0,0.00018878,2]
[386564180,1758396632396,-500.0,0.00018878,2]
[386564181,1758396632406,-500.0,0.00018878,2]
[386564182,1758396632415,-500.0,0.00018878,2]
[386564183,1758396632425,-500.0,0.00018878,2]
[386564184,1758396632434,-497.0,0.00018878,2]
[386564185,1758396632444,-300.0,0.00018879,2]
[386564186,1758396632454,-1200.0,0.00018879,2]
[386564187,1758396632463,-250.0,0.00018879,2]
[386564188,1758396632473,-300.0,0.00018879,2]
[386564189,1758396632483,-195.0,0.0001888,2]
[386564190,1758396632492,-195.0,0.00018882,2]
[386564191,1758396632502,-1500.0,0.00018882,2]
[386564192,1758396632511,-1661.51,0.00018923,2]
[386564193,1758396632521,-195.0,0.00019017,2]
[386564194,1758396632531,-491.92913494,0.000192,2]
[386564195,1758396632541,-162.32942677,0.00019204,2]
[386564196,1758396632552,-168.0,0.0001935,2]
[386564197,1758396632561,-168.0,0.00019391,2]
[386564198,1758396632571,-168.0,0.00019393,2]
[386564199,1758396632581,-241.75088233,0.00019443,2]
[386564200,1758396632591,-7965.41053268,0.00019444,2]
[386564201,1758396632599,-216.78299846,0.00019444,2]
[386564202,1758396632608,-248.71531821,0.00019444,2]
[386564203,1758396632620,-917.27798212,0.00019499,2]
[386564204,1758396632629,-500.0,0.00019678,2]
[386564205,1758396632639,-200.0,0.00019793,2]
[386564206,1758396632648,-168.0,0.00019864,2]
[386564207,1758396632658,-868.48,0.00019883,2]
[386564208,1758396632668,-250.0,0.00019886,2]
[386564209,1758396632678,-596.08579956,0.000199,2]
[386564210,1758396632688,-165.32792498,0.000199,2]
[386564211,1758396632698,-168.65,0.00019915,2]
[386564212,1758396632707,-163.22,0.00019961,3]
[386564213,1758396632717,-500.0,0.00019973,2]
[386564214,1758396632726,-500.0,0.00019973,2]
[386564215,1758396632736,-500.0,0.00019973,2]
[386564216,1758396632745,-500.0,0.00019973,2]
[386564217,1758396632754,-500.0,0.00019973,2]
[386564218,1758396632764,-500.0,0.00019973,2]
[386564220,1758396632774,-500.0,0.00019973,2]
[386564222,1758396632783,-539.17,0.00019983,2]
[386564224,1758396632793,-322.6107,0.00019988,2]
[386564226,1758396632802,-646.65982734,0.00019988,2]
[386564228,1758396632811,-151.0,0.00019988,2]
[386564230,1758396632821,-160.0,0.00019988,2]
[386564232,1758396632830,-500.0,0.00019988,2]
[386564234,1758396632839,-151.0,0.00019988,2]
[386564236,1758396632848,-274.34113695,0.00019988,2]
[386564238,1758396632857,-500.0,0.00019988,2]
[386564240,1758396632866,-500.0,0.00019988,2]
[386564242,1758396632876,-500.0,0.00019988,2]
[386564244,1758396632885,-151.0,0.00019988,2]
[386564246,1758396632895,-500.0,0.00019988,2]
[386564248,1758396632905,-500.0,0.00019988,2]
[386564250,1758396632914,-151.96697691,0.00019988,2]
[386564252,1758396632924,-500.0,0.00019988,2]
[386564254,1758396632933,-500.0,0.00019988,2]
[386564255,1758396632942,-151.0,0.00019988,2]
[386564256,1758396632951,-250.0,0.00019988,2]
[386564257,1758396632963,-500.0,0.00019988,2]
[386564258,1758396632973,-4000.0,0.0001999,2]
[386564259,1758396632982,-151.0,0.00019997,2]
[386564260,1758396632992,-999.99,0.00019999,2]
[386564261,1758396633002,-7237.72245975,0.0002,2]
[386564262,1758396633013,-2515.57,0.0002,2]
[386564263,1758396633023,-500.0,0.0002,2]
[386564264,1758396633033,-500.0,0.0002,2]
[386564265,1758396633044,-500.0,0.0002,2]
[386564266,1758396633053,-500.0,0.0002,2]
[386564267,1758396633063,-500.0,0.0002,2]
[386564268,1758396633072,-500.0,0.0002,2]
[386564269,1758396633082,-500.0,0.0002,2]
[386564270,1758396633091,-500.0,0.0002,2]
[386564271,1758396633101,-500.0,0.0002,2]
[386564272,1758396633111,-500.0,0.0002,2]
[386564273,1758396633121,-500.0,0.0002,2]
[386564274,1758396633131,-500.0,0.0002,2]
[386564275,1758396633140,-500.0,0.0002,2]
[386564276,1758396633150,-194.0,0.0002,2]
[386564277,1758396633160,-71499.27558411,0.0002,2]
[386564278,1758396633188,-8286.93137556,0.0002,2]
[386564279,1758396633242,-366.060186,0.0002,2]
[386564280,1758396633290,-22142.73419644,0.0002,2]
[386564281,1758396633364,-3199.55683465,0.0002,2]
[386564282,1758396633376,-1661.98799914,0.0002,2]
[386564471,1758396640583,-2591.18166024,0.000199,2]
[386564473,1758396640593,-916444.23034289,0.0002,2]
[386564475,1758396640602,-37219.23560424,0.0002,2]
[386564477,1758396640612,-500.0,0.0002,2]
[386564478,1758396640621,-500.0,0.0002,2]
[386564479,1758396640631,-897128.48112079,0.0002,2]
[386564480,1758396640645,-1581.55704213,0.0002,2]
[386564481,1758396640658,-3362.67508571,0.0002,2]
[386564718,1758396643376,-734.04574579,0.0002,2]
[386564723,1758396643432,-1454.58384498,0.0002,2]
[386564724,1758396643443,-1300.95422002,0.0002,2]
[386564725,1758396643487,-1173.42251106,0.0002,2]
[386564726,1758396643500,-880.95980511,0.0002,2]
[386564728,1758396643752,-1105.48280435,0.0002,2]
[386564729,1758396643764,-400.0,0.0002,2]
[386564741,1758396646455,-44106.42542633,0.0002,2]
[386564743,1758396646479,-4188.57527914,0.0002,2]
[386564747,1758396646566,-10223.20346014,0.0002,2]
[386566033,1758397547923,150.0,0.000182,2]
[386566079,1758397831639,-168.65,0.0001893,2]
[386566080,1758397831649,-195.0,0.00018937,2]
[386566081,1758397831659,-250.0,0.00018945,2]
[386566082,1758397831669,-2000.0,0.0001896,3]
[386566083,1758397831678,-666.0,0.00018991,3]
[386566084,1758397831688,-1200.0,0.00018993,2]
[386566085,1758397831697,-2000.0,0.00018994,3]
[386566086,1758397831708,-2000.0,0.00018994,3]
[386566087,1758397831717,-152.73773648,0.00018994,3]
[386566088,1758397831858,-324.69718776,0.00018994,3]
[386566089,1758397831870,-283.521,0.00018994,3]
[386566090,1758397831883,-314.75107333,0.00018994,3]
[386566091,1758397831892,-333.0,0.0001902,2]
[386566092,1758397831901,-160.0,0.00019051,2]
[386566093,1758397831911,-213.32528632,0.00019055,2]
[386566094,1758397831920,-8513.99,0.00019058,2]
[386566095,1758397831930,-150.0,0.00019076,7]
[386566096,1758397831939,-152.24,0.000191,2]
[386566097,1758397831949,-150.0,0.0001938,2]
[386566098,1758397831958,-400.0,0.00019452,2]
[386566099,1758397831968,-319.20258517,0.00019678,2]
[386566100,1758397831977,-150.36357,0.000198,2]
[386566101,1758397831987,-302.66,0.000199,2]
[386566102,1758397831996,-431.46748518,0.000199,2]
[386566103,1758397832008,-1347.2369513,0.000199,2]
[386566105,1758397832019,-570.84080728,0.000199,2]
[386566107,1758397832031,-841.60565624,0.000199,2]
[386566110,1758397832041,-2124.2407,0.000199,2]
[386566112,1758397832051,-165.32792493,0.000199,2]
[386566114,1758397832061,-536.47721964,0.000199,2]
[386566116,1758397832070,-2332.06349427,0.000199,2]
[386566118,1758397832079,-243.22,0.00019987,2]
[386566120,1758397832089,-151.0,0.00019997,2]
[386566122,1758397832098,-23997.19386799,0.0002,2]
[386566126,1758397832132,-4179.66577187,0.0002,2]
[386566201,1758397837485,-169.22561763,0.00019057,2]
[386566202,1758397837494,-5707.77438236,0.0002,2]
[386566203,1758397837505,-709.31531073,0.0002,2]
[386566356,1758397842689,-4249.39279774,0.0002,2]
[386566357,1758397842700,-451.195,0.0002,2]
[386566358,1758397842712,-454.83950026,0.0002,2]
[386566367,1758397843055,-6855.90067227,0.0002,2]
[386566369,1758397843066,-560.47152291,0.0002,2]
[386566373,1758397843089,-449.84096193,0.0002,2]
[386566375,1758397843100,-5817.895026,0.0002,2]
[386566377,1758397843111,-4506.0060002,0.0002,2]
[386566379,1758397843122,-115000.0,0.0002,2]
[386566383,1758397843144,-401.8943145,0.0002,2]
[386566385,1758397843155,-194699.09762711,0.0002,2]
[386566387,1758397843164,-77186.37103339,0.0002,2]
[386566389,1758397843175,-27373.61363324,0.0002,2]
[386566391,1758397843184,-3615.39198085,0.0002,14]
[386566441,1758397845466,-5542.52685121,0.0002,14]
[386566442,1758397845520,-3992.9701956,0.0002,14]
[386566443,1758397845533,-1274.95373995,0.0002,2]
[386566444,1758397845543,-2884.52806445,0.0002,2]
[386566445,1758397845836,-4378.75273501,0.0002,2]
[386566446,1758397845846,-519.36901807,0.0002,7]
[386566447,1758397845856,-150.0,0.0002,2]
[386566448,1758397845866,-2505.28301373,0.0002,5]
[386566581,1758397896069,161.85,9.917e-05,2]
[386566609,1758398154943,239.49,0.00026586,120]
[386566610,1758398155062,239.49,0.00029003,120]
[386566845,1758398755772,150.0,0.00018931,7]
[386566917,1758399031888,-171.44,0.00018897,2]
[386566918,1758399031899,-110.311,0.00018897,2]
[386566919,1758399031945,-117.839,0.00018897,2]
[386566920,1758399031955,-250.0,0.00018944,2]
[386566921,1758399031964,-300.0,0.00018944,2]
[386566922,1758399031974,-300.0,0.00018977,2]
[386566923,1758399031984,-171.48,0.0001899,2]
[386566924,1758399031994,-195.0,0.00018992,2]
[386566925,1758399032003,-449.93749004,0.00019,2]
[386566926,1758399032014,-1000.0,0.00019008,2]
[386566927,1758399032023,-249.49251192,0.00019095,2]
[386566928,1758399032033,-250.0,0.00019097,2]
[386566929,1758399032043,-150.0,0.000191,2]
[386566930,1758399032053,-150.61,0.00019176,2]
[386566931,1758399032064,-239.49,0.00019335,2]
[386566932,1758399032073,-719.0,0.00019361,2]
[386566933,1758399032082,-836.56,0.00019452,2]
[386566934,1758399032092,-500.0,0.00019678,2]
[386566935,1758399032102,-1500.0,0.000197,2]
[386566936,1758399032111,-150.36357,0.000198,2]
[386566937,1758399032120,-1200.0,0.00019822,2]
[386566938,1758399032130,-1029.8134885,0.00019824,2]
[386566939,1758399032140,-300.0,0.00019899,2]
[386566940,1758399032150,-1465.22983657,0.000199,2]
[386566941,1758399032160,-2070.7393244,0.00019979,2]
[386566942,1758399032169,-870.9957379,0.00019979,2]
[386566943,1758399032179,-5295.3465754,0.00019979,2]
[386566944,1758399032188,-27801.198996,0.00019979,2]
[386566945,1758399032198,-1859.4365051,0.00019979,2]
[386566946,1758399032207,-1074.4372782,0.00019979,2]
[386566948,1758399032216,-27405.9645191,0.00019979,2]
[386566950,1758399032226,-5769.8991834,0.00019979,2]
[386566952,1758399032235,-151.0,0.00019997,2]
[386566954,1758399032245,-544.48731084,0.0002,5]
[386566956,1758399032254,-1029.13877916,0.0002,2]
[386566958,1758399032263,-2819.4946404,0.0002,2]
[386566960,1758399032272,-18698.03928376,0.0002,2]
[386566962,1758399032285,-9959.31777079,0.0002,2]
[386566964,1758399032296,-45283.44139733,0.0002,2]
[386566966,1758399032307,-16703.03181105,0.0002,2]
[386566968,1758399032317,-904.08716357,0.0002,2]
[386566970,1758399032326,-2264.01,0.0002,2]
[386566972,1758399032335,-200.0,0.0002,2]
[386566974,1758399032346,-176.70464155,0.0002,2]
[386566976,1758399032355,-240.02483733,0.0002,2]
[386566978,1758399032364,-500.0,0.0002,2]
[386566980,1758399032374,-500.0,0.0002,2]
[386566982,1758399032383,-500.0,0.0002,2]
[386566984,1758399032393,-500.0,0.0002,2]
[386566986,1758399032402,-500.0,0.0002,2]
[386566988,1758399032411,-500.0,0.0002,2]
[386566990,1758399032420,-500.0,0.0002,2]
[386566992,1758399032430,-500.0,0.0002,2]
[386566994,1758399032439,-151.26,0.0002,2]
[386566996,1758399032449,-533.74,0.0002,2]
[386566998,1758399032458,-150.88,0.0002,2]
[386567000,1758399032467,-152.28,0.0002,2]
[386567002,1758399032477,-152.8,0.0002,2]
[386567004,1758399032486,-517.01,0.0002,2]
[386567006,1758399032496,-150.18,0.0002,2]
[386567008,1758399032505,-534.12,0.0002,2]
[386567010,1758399032514,-152.04,0.0002,2]
[386567012,1758399032524,-151.56,0.0002,2]
[386567014,1758399032533,-150.58,0.0002,2]
[386567016,1758399032542,-519.27,0.0002,2]
[386567018,1758399032552,-168.0,0.00020045,2]
[386567020,1758399032562,-316.190436,0.00020094,2]
[386567022,1758399032572,-4503.5932538,0.00020096,2]
[386567023,1758399032614,-1735.6967462,0.00020096,2]
[386567024,1758399032624,-168.0,0.00020168,2]
[386567025,1758399032634,-200.0,0.000202,2]
[386567026,1758399032643,-168.0,0.00020237,2]
[386567027,1758399032652,-150.0,0.0002028,2]
[386567028,1758399032662,-152.17,0.0002029,2]
[386567029,1758399032671,-152.35,0.0002029,2]
[386567030,1758399032681,-526.79,0.00020292,2]
[386567031,1758399032691,-286.37,0.00020343,2]